Cogmind - Beta 16 @@@ ROGUE MODE // 2026.01.27 @ 22:21:27 // AFD2020/Player2 Player: Anting Result: Core destroyed Performance ------------- Evolutions (0) 0 Regions Visited (4) 800 Robots Destroyed (16) 80 Value Destroyed (360) 360 Prototype IDs (0) 0 Alien Tech Used (0) 0 Bonus (282) 282 TOTAL SCORE: 1522 Bonus ------- Follower Combat Kills 303 Friendly Fire -21 Cogmind --------- Core Integrity 0/250 Matter 299/300 Energy 100/100 System Corruption 1% Temperature Cool (0) Movement Treading (160) Location -9/Mines Parts ------- > --- POWER (1) -------- (None) > --- PROPULSION (2) --- Light Treads Light Treads > --- UTILITY (2) ------ Large Storage Unit Seismic Detector > --- WEAPON (2) ------- Small Laser Small Laser > --- INVENTORY (15) --- Light Treads Light Treads Improved Heat Sink Huge Storage Unit High-capacity Matter Pod (200) Medium Armor Plating Hardened Light Armor Plating Hardened Light Armor Plating Hardened Light Armor Plating Shield Generator Shield Generator Light EM Pulse Cannon Heavy Assault Rifle Grenade Launcher Rocket Launcher Peak State ------------ > --- POWER ------------ (None) > --- PROPULSION ------- Light Treads Light Treads > --- UTILITY ---------- Large Storage Unit Seismic Detector > --- WEAPON ----------- Small Laser Light Assault Rifle > --- INVENTORY -------- Light Treads Light Treads Improved Heat Sink Huge Storage Unit High-capacity Matter Pod Light Armor Plating Medium Armor Plating Hardened Light Armor Plating Hardened Light Armor Plating Small Laser Heavy Assault Rifle Grenade Launcher Grenade Launcher Datajack [Rating: 8] Favorites ----------- Power None Propulsion Light Treads Treads Light Treads Leg Aluminum Leg Utility Small Storage Unit Device Seismic Detector Storage Small Storage Unit Protection Light Armor Plating Weapon Small Laser Energy Gun Small Laser Ballistic Gun Light Assault Rifle Build | -11 -10 -10 -10 -9 ------- Run | Yrd Mat Min Exi Min Slots Evolved . | . . . . . Power . | . . . . . Propulsion . | . . . . . Utility . | . . . . . Weapon . | . . . . . Parts Attached 12 | 6 2 1 1 2 Power . | . . . . . Engine . | . . . . . Core . | . . . . . Reactor . | . . . . . Propulsion 4 | 2 2 . . . Treads 2 | . 2 . . . Leg 2 | 2 . . . . Wheel . | . . . . . Hover . | . . . . . Flight . | . . . . . Utility 5 | 2 . 1 1 1 Device 2 | 1 . 1 . . Storage 2 | 1 . . 1 . Processor . | . . . . . Hackware . | . . . . . Protection 1 | . . . . 1 Artifact . | . . . . . Weapon 3 | 2 . . . 1 Energy Gun 2 | 1 . . . 1 Energy Cannon . | . . . . . Ballistic Gun 1 | 1 . . . . Ballistic Cannon . | . . . . . Launcher . | . . . . . Special Weapon . | . . . . . Impact Weapon . | . . . . . Slashing Weapon . | . . . . . Piercing Weapon . | . . . . . Special Melee Weapon . | . . . . . Unidentified Prototypes . | . . . . . Parts Lost 1 | . 1 . . . Power . | . . . . . Propulsion . | . . . . . Utility 1 | . 1 . . . Weapon . | . . . . . Highest Loss Streak 1 | . 1 . . . To Critical Strikes . | . . . . . Average Backups 8 | 2 6 8 8 14 Power . | . . . . . Propulsion 1 | 1 2 1 1 1 Utility 3 | . 2 3 3 8 Weapon 2 | . . 3 3 3 Tool/Special . | . . . . . Unused Backups 19 | . 1 1 . 17 Power . | . . . . . Propulsion 2 | . . . . 2 Utility 10 | . . 1 . 9 Weapon 6 | . 1 . . 5 Tool/Special 1 | . . . . 1 Average Slot Usage (%) 81 | . 76 83 85 85 Treads 20 | . 5 28 28 28 Leg 7 | . 22 . . . Device 10 | . 5 13 14 14 Storage 14 | . 14 14 14 14 Energy Gun 16 | . 14 14 14 26 Ballistic Gun 11 | . 14 13 14 1 Peak Build Rating 8 | 6 6 7 7 8 Average Rating 6 | 4 5 6 7 7 On Entrance 5 | . 6 6 7 7 Avg Prop Armor Cover (%) . | . . . . . Naked Turns . | . . . . . Heaviest Build 23 | 8 8 8 23 23 Greatest Support 40 | 20 40 40 40 40 Greatest Overweight (x) 1 | 1 . . . . Average Overweight (x) . | . . . . . Largest Inventory Capacity 15 | 8 8 8 15 15 Average Capacity 9 | 7 8 8 11 15 Most Carried 15 | 3 8 8 8 15 Average Carried 8 | 2 6 8 8 14 Final Capacity 15 | 8 8 8 15 15 Final Carried 15 | 3 8 8 8 15 Class Distribution -------------------- 100% | Mutant Dominant Class ---------------- Mutant | -10/Materials Mutant | -10/Mines Mutant | -10/Exiles Mutant | -9/Mines Resources | -11 -10 -10 -10 -9 ----------- Run | Yrd Mat Min Exi Min Matter Collected 562 | 271 218 29 . 44 Remotely . | . . . . . Salvage Created 508 | 138 232 42 . 96 Parts 35 | 10 14 2 . 9 Haulers Intercepted . | . . . . . Recyclers Shooed 2 | 1 . 1 . . Parts Field Recycled . | . . . . . Retrieved Matter . | . . . . . Parts Self-Destructed . | . . . . . Prevented . | . . . . . Parts Restored . | . . . . . Kills | -11 -10 -10 -10 -9 ------- Run | Yrd Mat Min Exi Min Combat Hostiles Destroyed 11 | . 6 1 . 4 Guns 11 | . 6 1 . 4 Classes Destroyed 5 | 2 1 . . 2 Tunneler 4 | 4 . . . . Recycler 1 | 1 . . . . Swarmer 3 | . . . . 3 Grunt 7 | . 6 1 . . Sentry 1 | . . . . 1 Best Kill Streak 4 | 4 1 1 . 3 Combat Bots Only 3 | . 1 1 . 3 Max Kills in Single Turn 1 | 1 1 1 . 1 Gunslinging . | . . . . . Exploded . | . . . . . Melee . | . . . . . Uniques/NPCs Destroyed . | . . . . . Combat | -11 -10 -10 -10 -9 -------- Run | Yrd Mat Min Exi Min Hostile Shots Fired 42 | . 28 3 . 11 Missed 7 | . 5 1 . 1 Hits 35 | . 23 2 . 10 Projectile 35 | . 23 2 . 10 Damage Taken 425 | . 287 38 . 100 Core 98 | . 84 14 . . Absorbed by Shields . | . . . . . Core Remaining (%) 100 | 100 . . . . Volleys Fired 74 | 11 46 7 . 10 Largest 2 | 2 2 2 . 2 Hottest 80 | 60 60 60 . 80 Shots Fired 135 | 22 81 12 . 20 Gun 135 | 22 81 12 . 20 Cannon . | . . . . . Launcher . | . . . . . Special . | . . . . . Kinetic 65 | 11 46 5 . 3 Thermal 70 | 11 35 7 . 17 Explosive . | . . . . . Electromagnetic . | . . . . . Robot Hit Streak 15 | 6 15 6 . 5 Robot Miss Streak 4 | 2 4 2 . 4 Penetration Max . | . . . . . Secondary Targets . | . . . . . Shots Hit Robots 84 | 16 50 9 . 9 Core Hits 35 | 9 18 2 . 6 Critical Kills . | . . . . . Critical Parts Destroyed . | . . . . . Critical Strikes . | . . . . . Melee Attacks . | . . . . . Impact . | . . . . . Slashing . | . . . . . Piercing . | . . . . . Sneak Attacks . | . . . . . Combat Hostiles . | . . . . . Follow-up Attacks . | . . . . . Damage Inflicted 811 | 170 461 86 . 94 Guns 803 | 162 461 86 . 94 Cannons . | . . . . . Explosions . | . . . . . Melee . | . . . . . Ramming 8 | 8 . . . . Kinetic 348 | 82 217 31 . 18 Thermal 455 | 80 244 55 . 76 Explosive . | . . . . . Electromagnetic . | . . . . . Impact . | . . . . . Slashing . | . . . . . Piercing . | . . . . . Highest Corruption 1 | . 1 1 1 1 Average Corruption 1 | . 1 1 1 1 Corruption Purged . | . . . . . Corruption Blocked . | . . . . . Effects 13 | . 5 6 . 2 Message Errors 3 | . 2 1 . . Matter Fused 3 | . 2 . . 1 Heat Flow Errors 3 | . 1 1 . 1 Energy Discharges 2 | . . 2 . . Data Loss (major) 1 | . . 1 . . Alerts 1 | . . 1 . . Overload Shots . | . . . . . Overflow Damage . | . . . . . Projectiles . | . . . . . Explosions . | . . . . . Melee . | . . . . . Knockbacks . | . . . . . Impact . | . . . . . Kinetic . | . . . . . Secondary . | . . . . . Self-Inflicted Damage . | . . . . . Shots . | . . . . . Rammed 1 | . . . . 1 Targets Rammed 5 | 4 . . . 1 Kicked 4 | 4 . . . . Crushed . | . . . . . Highest Temperature 265 | 20 265 139 . 112 Average Temperature 24 | 9 28 35 . 18 Received Heat Transfer 189 | . 156 24 . 9 Siege Activations . | . . . . . Martial Activations . | . . . . . Shielding Activations . | . . . . . Robots Disrupted . | . . . . . Combat Hostiles . | . . . . . Robots Corrupted . | . . . . . Combat Hostiles . | . . . . . Parts Fried . | . . . . . Impact Corruptions . | . . . . . Robots Melted . | . . . . . Combat Hostiles . | . . . . . Parts Melted 2 | 1 . . . 1 Heat Transferred 1025 | 175 550 125 . 175 Parts Sabotaged . | . . . . . Parts Stolen . | . . . . . Parts Stripped . | . . . . . Power Chain Reactions . | . . . . . Alert | -11 -10 -10 -10 -9 ------- Run | Yrd Mat Min Exi Min Maximum Alert Level 1 | . 1 . . . Low Security (%) 87 | 100 64 100 . 100 Level 1 12 | . 35 . . . Level 2 . | . . . . . Level 3 . | . . . . . Level 4 . | . . . . . Level 5 . | . . . . . High Security . | . . . . . Max Security . | . . . . . Peak Influence 300 | 10 300 91 . 91 Initial 91 | . . 91 . . Average 60 | 3 135 19 . 23 Influence Increases 779 | 25 522 83 . 149 Destroy 0b10 Robot/C 440 | . 300 40 . 100 Destroy 0b10 Robot/NC 60 | 25 20 10 . 5 Destroy Leader 86 | . 66 10 . 10 Allied During Kill 148 | . 91 23 . 34 Successful Hack 14 | . 14 . . . Select Force Hacks 30 | . 30 . . . Destroy Structure 1 | . 1 . . . Influence Decreases 779 | 25 286 280 39 149 Entered New Map 184 | . . 145 39 . Time Decay 574 | 25 276 135 . 138 Lost Part 21 | . 10 . . 11 Squads Dispatched 4 | . 4 . . . Investigation 2 | . 2 . . . Extermination . | . . . . . Reinforcement 2 | . 2 . . . Assault . | . . . . . Garrison . | . . . . . Intercept . | . . . . . Searches Triggered . | . . . . . Construction Impeded . | . . . . . Haulers Reinforced . | . . . . . Active Scanning Responses . | . . . . . Cargo Convoy Interrupts . | . . . . . Stealth | -11 -10 -10 -10 -9 --------- Run | Yrd Mat Min Exi Min Distress Signals 1 | . 1 . . . Communications Jammed . | . . . . . Distress Signals . | . . . . . Times Spotted 29 | . 21 2 . 6 Peak Tracking Total 4 | . 4 2 . 3 Tactical Retreats . | . . . . . Traps | -11 -10 -10 -10 -9 ------- Run | Yrd Mat Min Exi Min Traps Triggered 2 | . 2 . . . Indirectly . | . . . . . Trap Hack Attempts . | . . . . . Triggered . | . . . . . Disarmed . | . . . . . Reprogrammed . | . . . . . Reused . | . . . . . Traps Extracted . | . . . . . Installed . | . . . . . Triggered . | . . . . . Machines | -11 -10 -10 -10 -9 ---------- Run | Yrd Mat Min Exi Min Machines Disabled . | . . . . . Max in Single Turn . | . . . . . Machines Repaired . | . . . . . Machines Dismantled . | . . . . . Machines Sabotaged . | . . . . . Overloaded Fab Kills . | . . . . . Hacking | -11 -10 -10 -10 -9 --------- Run | Yrd Mat Min Exi Min Machines Accessed 8 | . 7 . 1 . Terminals 6 | . 6 . . . Fabricators . | . . . . . Repair Stations . | . . . . . Recycling Units 1 | . 1 . . . Scanalyzers . | . . . . . Garrison Access . | . . . . . Total Hacks 16 | . 15 . 1 . Successful 6 | . 5 . 1 . Failed 9 | . 9 . . . Catastrophic 1 | . 1 . . . Database Lockouts 1 | . 1 . . . Manual 9 | . 9 . . . Terminals 14 | . 14 . . . Fabricators . | . . . . . Repair Stations . | . . . . . Recycling Units 1 | . 1 . . . Scanalyzers . | . . . . . Garrison Access . | . . . . . Terminal Hacks 5 | . 4 . 1 . Record 1 | . . . 1 . Part Schematic 2 | . 2 . . . Branch Access Points 1 | . 1 . . . Hauler Manifests 1 | . 1 . . . Fabricator Hacks . | . . . . . Repair Station Hacks . | . . . . . Recycling Unit Hacks . | . . . . . Scanalyzer . | . . . . . Garrison Access Hacks . | . . . . . Unauthorized Hacks 1 | . 1 . . . Terminals . | . . . . . Fabricators . | . . . . . Repair Stations . | . . . . . Recycling Units 1 | . 1 . . . Tunnel 1 | . 1 . . . Scanalyzers . | . . . . . Garrison Access . | . . . . . Data Cores Recovered . | . . . . . Used . | . . . . . Hacking Detections 5 | . 5 . . . Full Trace Events . | . . . . . Feedback Events . | . . . . . Feedback Blocked . | . . . . . Robot Schematics Acquired . | . . . . . Robots Built . | . . . . . Authchips . | . . . . . Time . | . . . . . Total Robot Build Rating . | . . . . . Part Schematics Acquired 2 | . 2 . . . Parts Built . | . . . . . Authchips . | . . . . . Time . | . . . . . Total Part Build Rating . | . . . . . Part Studies Acquired . | . . . . . Parts Repaired . | . . . . . Time . | . . . . . Parts Recycled . | . . . . . Recycled Matter . | . . . . . Retrieved Matter . | . . . . . Retrieved Components . | . . . . . Parts Scanalyzed . | . . . . . Part Schematics Acquired . | . . . . . Parts Damaged . | . . . . . Bothacking | -11 -10 -10 -10 -9 ------------ Run | Yrd Mat Min Exi Min Used RIF Installer . | . . . . . Robots Hacked . | . . . . . Non-combat . | . . . . . Combat . | . . . . . Robot Hacks Applied . | . . . . . Relay Couplers Released . | . . . . . Fabnet Peak Effective % . | . . . . . Robots Rewired . | . . . . . Allies Hacked . | . . . . . Hacks Repelled . | . . . . . Allies | -11 -10 -10 -10 -9 -------- Run | Yrd Mat Min Exi Min Total Allies 4 | . 1 3 . . Largest Group 4 | . 1 4 4 4 Highest-Rated Group 97 | . 58 97 97 97 Highest-Rated Ally 60 | . 58 57 57 60 Total Orders . | . . . . . Ally Attacks 63 | . 30 6 . 27 Total Damage 1169 | . 557 138 . 474 Kills 22 | . 13 3 . 6 Allies Corrupted . | . . . . . Allies Melted . | . . . . . Intel | -11 -10 -10 -10 -9 ------- Run | Yrd Mat Min Exi Min Active Infowar (turns) 1745 | 14 275 730 229 497 Seismic 1745 | 14 275 730 229 497 Robot Analysis Total . | . . . . . Derelict Logs Recovered 2 | . . 1 . 1 Drone Launches . | . . . . . Drone Recoveries . | . . . . . Exploration | -11 -10 -10 -10 -9 ------------- Run | Yrd Mat Min Exi Min Turns Passed 2358 | 106 754 771 229 498 Spaces Moved 1410 | 52 471 465 143 279 Core 12 | 12 . . . . Treads 975 | . 88 465 143 279 Legs 423 | 40 383 . . . Wheels . | . . . . . Hover . | . . . . . Flight . | . . . . . Fastest Speed 50 | 50 120 160 160 160 Average Speed 147 | 114 127 160 160 160 Slowest Speed 160 | 120 160 160 160 160 Overloaded Moves . | . . . . . Propulsion Burnouts . | . . . . . Robots Hopped . | . . . . . Potential Cave-ins . | . . . . . Cave-ins Triggered . | . . . . . Exploration Rate (%) 52 | 4 68 91 54 47 Regions Visited 4 Branch Regions 3 Pre-discovered Areas 3 | . 1 1 1 . Known Exits Taken 1 | . 1 . . . Unknown Exits Taken 3 | 1 . 1 1 . Scrap Searched 2 | . . . . 2 Spaces Dug . | . . . . . Terrain Destroyed . | . . . . . Melee . | . . . . . Projectile . | . . . . . AOE . | . . . . . Terrain Rammed . | . . . . . Walls Destroyed . | . . . . . Machines Disabled . | . . . . . Actions | -11 -10 -10 -10 -9 --------- Run | Yrd Mat Min Exi Min Total 1570 | 75 554 482 144 315 Wait 36 | . 25 6 . 5 Move 1407 | 52 470 464 142 279 Hop . | . . . . . Pick Up 24 | 3 8 1 . 12 Fast Attach 8 | 6 . 2 . . Attach 3 | . 2 . . 1 Detach . | . . . . . Swap 3 | . . . 1 2 Drop 11 | . 3 2 1 5 Fire 74 | 11 46 7 . 10 Melee . | . . . . . Ram . | . . . . . Kick 3 | 3 . . . . Crush 1 | . . . . 1 Escape Stasis . | . . . . . Rewire . | . . . . . Trap . | . . . . . Miscellaneous . | . . . . . Route ------- -11/Scrapyard -10/Materials (discovered 4 exits: [*Mat x2] / *Min x2) -10/Mines (discovered 2 exits: [*Mat] / *Exi) -10/Exiles -9/Mines History --------- Turn | Location | Event 18 | -11/Scrapyard | Discovered new exit (range 15) 107 | -11/Scrapyard | Entered Materials 142 | -10/Materials | Identified exit to Mines 318 | -10/Materials | Build established: Mutant 447 | -10/Materials | Discovered new exit (range 9) 546 | -10/Materials | Central database locked down 620 | -10/Materials | Discovered new exit (range 16) 861 | -10/Materials | Entered Mines 950 | -10/Mines | Discovered new exit (range 16) 1314 | -10/Mines | Assisted by bots powering up and referring to "LRC-V3" 1378 | -10/Mines | Deemed a non-threat by the Exiles lab entrance 1378 | -10/Mines | Discovered new exit (range 5) 1430 | -10/Mines | Found a Scrap Suit stashed away for nefarious purposes 1557 | -10/Mines | Core integrity fell below 50% 1632 | -10/Mines | Entered Exiles 1632 | -10/Exiles | Accompanied by 3 allies 1671 | -10/Exiles | Met 8R-AWN 1700 | -10/Exiles | Met EX-HEX 1768 | -10/Exiles | Met EX-DEC 1796 | -10/Exiles | Learned location of Zion (-7) 1845 | -10/Exiles | Discovered new exit (range 10) 1861 | -10/Exiles | Entered Mines 1861 | -9/Mines | Accompanied by 3 allies 1873 | -9/Mines | Joined a pair of Derelicts in attacking an 0b10 outpost 2110 | -9/Mines | Learned 4 Materials zone layouts 2195 | -9/Mines | Received a Rocket Launcher from a helpful Derelict 2309 | -9/Mines | Assembled infested the area 2314 | -9/Mines | Assisted by a Guerilla fighting off Assembled 2347 | -9/Mines | Core integrity fell below 20% 2359 | -9/Mines | Core destroyed Last Messages --------------- 02258_ System corrupted: Matter fused (-5). 02279_ System corrupted: Heat flow error (+135). 02290_ Dropped Lgt. Armor Plating. 02290_ Acquired Hrd. Light Armor Plating. 02309_ ALERT: Infestation in the mines, dispatching Demolisher response squad. 02310_ K-01 Serf destroyed. 02312_ KZ-TZE(h): "I'll hold them off! Go on ahead or try to find another way!" 02312_ HV Slug penetrates Wall. 02312_ K-01 Serf collects debris. 02314_ A derelict emerges from the shadows: "You need to get out of here! I've been tracking a group of Assembled to figure out where they're coming from, and they're closing on this area, come on!" 02314_ K-01 Serf destroyed. 02316_ KZ-TZE(h) shuts down. 02322_ Mercenary 1a destroyed. 02331_ Slammed into T-07 Excavator. Map ----- +----------------------------------------------------+ | ??????????????# #?????????# #?????? | | ??????????????# #????????## ###???? | | ??????????????# #?####??## #???? | | ??????????????# ### #### #???? | | ??????????????# ## #???? | | ??????????????# ##???? | | ??????????????#### ##????? | | ?????????????## ## % #?????? | | ?????????????#" ![# % ##????? | | ?????????????#%% + ## #????? | | ?????????????#% /% #### ###### | | ?????????????#" # #??# ## | | ?????????????## ## #??# | | ??????????????####### #??## ### | | ????????????????????# #???## ##?? | | ????????????????????## #????### #??? | | ???#############??????##??????# #??? | | ???# #??????????????# #??? | | ???? #??????????????# #??? | | ???? #??????????????# #### | | ????? #??????????????# ! | | ???? """ """ #########?????## %### | | ???# """ """ #?????# ]#?? | | ???# """ """ ####### #????## !##?? | | ???# / #?????# #???## ####? | | ????#######@####?????# #??## #? | | ????????### #????????# #?## #? | | ????????#%%/#???????## #?# ## #? | | ????????#!###???##### ### ## #? | | ????????#%#?????# ## #? | | ????????#*##????# ## #? | | ???????##[=##???## ## ### #? | | ??????##=%* #????### ### ### #? | | ??????# [ #??????## ## ## ## | | ?????## ##???????## # | | ????## ###?????????## !% | | ???## ##????????????## ##### [ | | ???# ] ##?????????????## ##???# | | ???# ##?????????????####????## | | ???# ##?????????????????????## | | ???# ####????????????????????# | | ??# #??????????????????? | | ??# #?????????????????? | | ??# #### ###?????????????????? | | ??# #????#???????????????????? | | ??## #????????????????????????? | | ???## ##????????????????????????? | | ????# #?????????????????????????? | | ???? #?????????????????????????? | | ???? ##?????????????????????????? | +----------------------------------------------------+ Best States ------------- Heat Dissipation 25 Energy Generation 5 Energy Capacity 100 Matter Stores 300 Matter Capacity 300 Sight Range 16 Terrain Scan Density 10 Evasion (%) 55 Recoil Reduction 2 Item Schematics ----------------- Hcp. Storage Unit | -10/Materials | Hacked Huge Storage Unit | -10/Materials | Hacked Robot Schematics ------------------ None Fabricated ------------ Nothing Repaired ---------- Nothing Studied --------- None Alien Tech Used ----------------- None Achievements -------------- None Challenges ------------ None Player 2 | -11 -10 -10 -10 -9 ---------- Run | Yrd Mat Min Exi Min Slots Evolved . | . . . . . Power . | . . . . . Propulsion . | . . . . . Utility . | . . . . . Weapon . | . . . . . Parts Attached 22 | . 18 1 . 3 Parts Lost 3 | . . . . 3 Damage Taken 692 | . 144 . . 548 Core 157 | . 35 . . 122 Player 2/Cogmind (%) 61 | . 29 . . 100 Absorbed by Shields . | . . . . . Damage Inflicted 994 | . 557 104 . 333 Player 2/Cogmind (%) 55 | . 54 54 . 77 Combat Hostiles Destroyed 12 | . 9 . . 3 Player 2/Cogmind (%) 52 | . 60 . . 42 Game ------ Seed CombatShockboltShield Manual? 0 Play Time 00:17:06 Cumulative 414.7 hours Start 2026.01.27 @ 22:05:37 End 2026.01.27 @ 22:21:27 Sessions 1 Manual Loads 0 Difficulty Rogue Special Mode AFD2020/Player2 Game No. 273 Rogue 273 Adventurer 0 Explorer 0 Win Type - Total 27 Types 10/0/8/1/1/0/3/2/1/1 Lore% 84 Gallery% 80 Achievement% 71 Wizard Run 0 Options --------- Layout 1 ASCII 0 Keyboard 0 Movement Mouse Keybinds 0 Fullscreen 2 Font 24/Smallcaps Map View 50x35 Zoom Use 0% Tactical HUD 1 Map Filters NONE Filters NONE Steam 1 RUN: 57d9e918-55fc-4792-9860-a131554c650f